[Event "85th Tata Steel Challengers 2023"]
[Site "Wijk aan Zee"]
[Date "2023.01.15"]
[Round "2.4"]
[White "Vaishali, Rameshbabu"]
[Black "Donchenko, Alexander"]
[Result "0-1"]
[ECO "B85"]
[WhiteElo "2425"]
[BlackElo "2627"]
[Annotator "TA"]
[PlyCount "61"]
[EventDate "2023.01.10"]
[EventType "tourn"]
[EventCountry "NED"]
[SourceTitle "playchess.com"]
[Source "ChessBase"]
[SourceQuality "1"]
[TimeControl "40/6000+30:30/3000+30:900+30"]

{[%evp 16,61,0,0,-5,-7,0,0,0,0,0,0,9,0,0,0,9,7,14,0,0,0,15,11,22,0,18,0,30,22,42,0,0,0,0,0,0,-16,-15,-11,-8,-10,-8,-55,-47,-50,-53,-54]} 1. e4 {[%emt 0:00:36]} c5 {[%emt 0:00:17]} 2. Nf3 {[%emt 0:00:05]} d6 {[%emt 0:00:10]} 3. d4 {[%emt 0:00:14]} cxd4 {[%emt 0:00:07]} 4. Nxd4 {[%emt 0:00:06]} Nf6 {[%emt 0:00:06]} 5. Nc3 {[%emt 0:00:06]} a6 {[%emt 0:00:06]} 6. Be2 {[%emt 0:00:06]} e6 {[%emt 0:00:34]} 7. Be3 {[%emt 0:00:24]} Be7 {[%emt 0:00:35]} 8. O-O {[%emt 0:02:54]} O-O {[%emt 0:02:00]} 9. f4 {[%emt 0:01:00]} e5 {[%emt 0:02:19] B85: Sicilian Scheveningen: 6 Be2 a6, lines with early Be3.} 10. fxe5 {[%emt 0:10:17]} dxe5 {[%emt 0:00:20]} 11. Nf5 {[%emt 0:00:21]} Bxf5 {[%emt 0:06:42] The position is equal.} 12. Rxf5 {[%emt 0:01:19]} Nc6 {[%emt 0:05:31]} 13. Bd3 {[%emt 0:09:56] [#]} Qd6 $146 {[%emt 0:11:46]} ({Predecessor:} 13... b5 14. a3 Rc8 15. Kh1 g6 16. Rf2 Nd4 17. Bh6 Re8 18. h3 Nh5 19. Qg4 Bh4 {1-0 Schnabel,R (2235)-Petersen,M (1818) Berlin Lichtenrade op 15th 2019 (9)}) 14. Bg5 {[%emt 0:15:16]} h6 {[%emt 0:16:48]} 15. Bxf6 {[%emt 0:01:53]} Bxf6 {[%emt 0:00:06]} 16. Nd5 {[%emt 0:00:17] [#] Black must now prevent Nxf6+.} Bg5 {[%emt 0:00:26]} 17. c3 {[%emt 0:11:35]} Ne7 {[%emt 0:07:46]} 18. Nxe7+ {[%emt 0:00:49]} Bxe7 {[%emt 0:00:17]} 19. Qe2 {[%emt 0:03:00]} b5 {[%emt 0:08:57]} 20. a4 {[%emt 0:05:30]} Bg5 {[%emt 0:04:53]} 21. Rf3 {[%emt 0:05:47]} Rad8 {[%emt 0:08:22]} 22. g3 {[%emt 0:06:14]} h5 {[%emt 0:05:17]} 23. Kh1 {[%emt 0:08:31]} (23. Kg2 {feels hotter.} h4 24. axb5 axb5 25. Bxb5 Qb6 26. Ra6) 23... h4 {[%emt 0:02:56]} ({Don't take} 23... bxa4 24. h4 (24. Rxa4 h4 $14) (24. Bxa6 Qc6 $11) 24... Be7 25. Rxa4 $16) 24. axb5 {[%emt 0:21:33]} axb5 {[%emt 0:00:24]} 25. gxh4 {[%emt 0:01:36]} Bf4 {[%emt 0:01:03]} 26. Bxb5 {[%emt 0:00:39]} Qh6 {[%emt 0:01:34]} 27. Bd3 {[%emt 0:00:46]} Qxh4 {[%emt 0:04:00]} 28. b4 {[%emt 0:01:24] White is weak on the dark squares} Rd6 {[%emt 0:04:36] And now ...Rfd8 would win.} 29. Rg1 {[%emt 0:01:05]} (29. Qg2 $11) 29... Rfd8 $15 {[%emt 0:02:16][%cal Od6d3][%mdl 1024] [#] ...Rxd3! is the strong threat. Black has compensation.} 30. Rg2 {[%emt 0:00:22]} R8d7 {[%emt 0:00:18] Threatens to win with ...Qd8.} 31. Qf1 {[%emt 0:00:00] Weighted Error Value: White=0.08 (flawless) /Black=0.04 (flawless)} 0-1

[Event "85th Tata Steel Challengers 2023"]
[Site "Wijk aan Zee"]
[Date "2023.01.15"]
[Round "2.5"]
[White "Adhiban, B.."]
[Black "Beerdsen, Thomas"]
[Result "1/2-1/2"]
[ECO "D43"]
[WhiteElo "2610"]
[BlackElo "2515"]
[Annotator "TA"]
[PlyCount "117"]
[EventDate "2023.01.10"]
[EventType "tourn"]
[EventCountry "NED"]
[SourceTitle "playchess.com"]
[Source "ChessBase"]
[SourceQuality "1"]
[TimeControl "40/6000+30:30/3000+30:900+30"]

{[%evp 9,117,0,27,0,0,0,6,3,32,20,22,20,22,28,29,0,0,0,0,0,0,0,43,23,22,0,27,18,47,37,77,79,72,83,108,80,89,85,75,73,74,31,110,92,124,102,103,96,111,0,41,47,64,55,44,0,0,16,87,81,120,125,246,-120,-100,-412,28,-306,-309,-425,-305,-299,-295,-295,-290,-309,-280,-356,-284,-316,-315,-307,-304,-296,-293,-281,-293,-283,-251,-245,-178,-185,-113,-113,-113,-105,-25,-38,0,0,0,0,0,0,0,0,0,0,0,0]} 1. Nf3 {[%emt 0:00:16]} d5 {[%emt 0:00:41]} 2. d4 {[%emt 0:00:18]} Nf6 {[%emt 0:00:14]} 3. c4 {[%emt 0:00:09]} c6 {[%emt 0:00:12]} 4. Nc3 {[%emt 0:00:44]} e6 {[%emt 0:00:15]} 5. Qd3 {[%emt 0:04:01]} Nbd7 {[%emt 0:10:52]} 6. g3 {[%emt 0:01:38] D43: Semi-Slav: 5 Bg5 h6.} b6 $1 {[%emt 0:07:21][%mdl 4] is recently more successful than 6...Bd6.} 7. Bg2 {[%emt 0:12:36]} Ba6 {[%emt 0:05:30]} 8. b3 {[%emt 0:00:11]} Bb4 {[%emt 0:05:07]} 9. O-O {[%emt 0:02:01]} O-O {[%emt 0:06:05]} 10. Bb2 {[%emt 0:13:10]} Rc8 {[%emt 0:02:09]} 11. Rfd1 {[%emt 0:05:28]} Qe7 {[%emt 0:04:00] [#]} 12. a4 $146 {[%emt 0:07:28]} ({Predecessor:} 12. a3 Bd6 13. a4 Bb4 14. Na2 Bd6 15. Nc3 Bb4 16. Na2 Ba3 17. Bxa3 Qxa3 18. Qc3 {0-1 Smirnov,A (2466)-Maletin,P (2570) Zudov Memorial 10th 2014 (3)}) 12... Rfd8 {[%emt 0:03:59]} 13. Rac1 {[%emt 0:02:18]} h6 {[%emt 0:07:06]} 14. e3 {[%emt 0:28:42]} Ba5 {[%emt 0:17:01]} 15. Ba1 {[%emt 0:19:46]} Qb4 {[%emt 0:14:09]} 16. Na2 {[%emt 0:02:05]} Qe7 {[%emt 0:03:00]} 17. Nc3 {[%emt 0:00:10]} dxc4 {[%emt 0:05:11]} 18. bxc4 {[%emt 0:00:04]} Qb4 {[%emt 0:00:28]} 19. Nd2 {[%emt 0:03:20][%cal Bf3d2,Bd2e4,Be4d6][%mdl 32]} e5 {[%emt 0:04:33]} 20. Qc2 {[%emt 0:00:34][%cal Oc4c5]} exd4 {[%emt 0:01:52]} (20... Bxc4 $2 21. Rb1 $18) 21. exd4 {[%emt 0:00:01][%cal Oc4c5]} Nf8 {[%emt 0:01:50]} (21... Bxc4 $2 22. Rb1 $18) 22. Nce4 {[%emt 0:01:03]} (22. c5 {is more complex.} bxc5 23. Na2 Qb8 24. Nb3) 22... Nxe4 {[%emt 0:00:39]} 23. Nxe4 {[%emt 0:00:05]} Ne6 {[%emt 0:00:21]} 24. Bh3 {[%emt 0:02:46]} Qe7 {[%emt 0:01:24]} 25. c5 {[%emt 0:00:39]} Rc7 {[%emt 0:02:16]} (25... Rb8 $14) 26. Nd6 $16 {[%emt 0:02:20]} Rcd7 {[%emt 0:01:21]} 27. Bc3 {[%emt 0:00:35] Dodges Bb4} Bxc3 {[%emt 0:00:47]} 28. Qxc3 {[%emt 0:00:01]} Qf6 {[%emt 0:01:19]} 29. Kg2 {[%emt 0:01:52]} (29. Bxe6 $16 Qxe6 30. Re1) 29... Be2 {[%emt 0:01:56]} (29... Re7 $5 {[%cal Re6g5]}) 30. Rd2 {[%emt 0:00:20]} Bh5 {[%emt 0:00:27]} 31. f4 $1 {[%emt 0:00:39]} Re7 {[%emt 0:01:37][%cal Bd7e7,Be7c7,Bc7c6][%mdl 32]} 32. d5 {[%emt 0:00:31]} (32. Kh1 {is interesting.} Bg6 33. f5 Ng5 34. fxg6 Nxh3 35. gxf7+ Kf8 36. Kg2) 32... Qxc3 {[%emt 0:01:25]} 33. Rxc3 {[%emt 0:00:03]} Nxc5 {[%emt 0:00:13]} (33... cxd5 $11 {keeps the balance.} 34. c6 Rxd6 35. Bxe6 Rc7 36. Bxd5 Kf8) 34. dxc6 {[%emt 0:00:30]} Rc7 {[%emt 0:00:58]} (34... Nxa4 $2 35. c7 $18) 35. Bd7 {[%emt 0:00:46] White is more active.} a6 {[%emt 0:01:04]} (35... Nxd7 $2 36. Nb5 Rcc8 37. c7 $18 (37. cxd7 Rxc3 38. Nxc3 Bg4 $17)) (35... Kf8 $16 36. a5 Bg6) 36. Ne8 $2 {[%emt 0:00:45]} (36. a5 $1 $18 {[%cal Ra5b6]} Nxd7 37. Nb7) 36... Rxc6 $17 {[%emt 0:00:11][%mdl 64] Pin} 37. a5 $2 {[%emt 0:00:32][%mdl 8192]} bxa5 $2 {[%emt 0:00:47]} (37... Rxd7 38. Rxd7 Nxd7 39. Rxc6 bxa5 40. Rxa6 $18) ({Black should try} 37... Re6 $1 $19 38. axb6 Nxd7) 38. Rd4 {[%emt 0:00:26][%mdl 8192]} (38. Rd5 $11 {and White is okay.} Bg6 39. Bxc6 Be4+ 40. Kh3 Bxd5 41. Rxc5 Bxc6 42. Rxc6 Rxe8 43. Rxa6) 38... Ne6 $1 $19 {[%emt 0:00:36][%mdl 64] Discovered Attack} (38... Rxd7 39. Rxd7 f6 40. Rd8 $18 (40. Rxg7+ Kf8 $18)) 39. Bxe6 {[%emt 0:00:32]} Rxd4 {[%emt 0:00:29]} (39... Rxc3 40. Rxd8 Bf3+ 41. Kf2 fxe6 42. Nc7+ Kf7 43. Rd7+ Kg6 44. Nxe6 $17) 40. Rxc6 {[%emt 0:00:09] Hoping for Bc4.} fxe6 {[%emt 0:00:17][%mdl 4096] Endgame KRB-KRN} 41. Nc7 {[%emt 0:09:37]} Rd2+ {[%emt 0:09:45]} 42. Kg1 {[%emt 0:17:37]} Be2 {[%emt 0:08:20] ...a4 is the strong threat.} 43. Rc5 {[%emt 0:05:19]} a4 {[%emt 0:02:23]} 44. Ra5 {[%emt 0:00:07]} Ra2 {[%emt 0:01:08]} 45. Kf2 {[%emt 0:04:57]} Bd1+ {[%emt 0:05:38]} 46. Ke3 {[%emt 0:01:17]} Rxh2 {[%emt 0:09:34]} 47. Rxa6 {[%emt 0:00:10]} Rg2 {[%emt 0:01:13]} 48. Nxe6 {[%emt 0:01:30]} a3 {[%emt 0:05:42][%cal Ba4a3,Ba3a2][%mdl 32]} 49. Ke4 {[%emt 0:02:37]} a2 {[%emt 0:02:14] White must now prevent ...Re2+.} 50. Nd4 {[%emt 0:00:16] Dodges Re2+} Kh7 {[%emt 0:03:32]} ({Worse is} 50... Rxg3 51. Rxa2 Rg1 52. f5 $15) (50... Bh5 $19 {...Bf7 would be deadly.} 51. f5 Kh7) 51. f5 $17 {[%emt 0:04:03]} Bh5 {[%emt 0:00:38]} ({Not} 51... Rxg3 52. Rxa2 h5 53. Ra1 $15) 52. Ra7 {[%emt 0:00:11] [#]} Bf7 {[%emt 0:01:05]} 53. Ne6 $11 {[%emt 0:00:16]} Rxg3 {[%emt 0:04:51] Threatens to win with ...Rg2.} (53... Rf2 {seems wilder.} 54. Ke5 Re2+ 55. Kd6 Kh8) 54. Rxa2 {[%emt 0:00:11] The position is equal.} g6 {[%emt 0:00:54]} 55. Ra7 {[%emt 0:01:38]} Kg8 {[%emt 0:00:35]} 56. Ra8+ {[%emt 0:00:09]} Kh7 {[%emt 0:00:04]} 57. Ra7 {[%emt 0:00:39]} Kg8 {[%emt 0:00:06]} 58. Ra8+ {[%emt 0:00:05]} Kh7 {[%emt 0:00:05]} 59. Ra7 {[%emt 0:00:05] Black had all chances to win.   Weighted Error Value: White=0.40/Black=0.36} 1/2-1/2

[Event "85th Tata Steel Challengers 2023"]
[Site "Wijk aan Zee"]
[Date "2023.01.15"]
[Round "2.6"]
[White "Roebers, Eline"]
[Black "L'Ami, Erwin"]
[Result "1-0"]
[ECO "C95"]
[WhiteElo "2361"]
[BlackElo "2627"]
[Annotator "TA"]
[PlyCount "91"]
[EventDate "2023.01.10"]
[EventType "tourn"]
[EventCountry "NED"]
[SourceTitle "playchess.com"]
[Source "ChessBase"]
[SourceQuality "1"]
[TimeControl "40/6000+30:30/3000+30:900+30"]

{[%evp 21,91,20,27,17,22,14,19,-3,24,20,29,30,39,18,32,39,41,29,38,27,36,39,54,27,50,16,60,66,106,43,75,56,60,72,47,0,236,235,330,352,331,337,314,351,341,351,334,291,620,558,677,676,677,625,625,613,597,566,554,52,546,552,509,504,952,942,1773,1595,1343,1114,717,717]} 1. e4 {[%emt 0:00:04]} e5 {[%emt 0:00:16]} 2. Nf3 {[%emt 0:00:11]} Nc6 {[%emt 0:00:07]} 3. Bb5 {[%emt 0:00:04]} a6 {[%emt 0:00:12]} 4. Ba4 {[%emt 0:00:04]} Nf6 {[%emt 0:00:10]} 5. O-O {[%emt 0:00:12]} Be7 {[%emt 0:00:18]} 6. Re1 {[%emt 0:00:09]} b5 {[%emt 0:00:07]} 7. Bb3 {[%emt 0:00:04]} d6 {[%emt 0:00:09]} 8. c3 {[%emt 0:00:17]} O-O {[%emt 0:00:11]} 9. h3 {[%emt 0:00:09]} Nb8 {[%emt 0:01:27]} 10. d4 {[%emt 0:00:29]} Nbd7 {[%emt 0:00:12]} 11. Nbd2 {[%emt 0:00:12][%cal Bb1d2,Bd2f1,Bf1g3,Bg3f5][%mdl 32]} c5 {[%emt 0:01:01]} 12. Nf1 {[%emt 0:04:26] C95: Closed Ruy Lopez: Breyer Variation with 10 d4.} Re8 {[%emt 0:02:55]} 13. Ng3 {[%emt 0:10:40]} Bf8 {[%emt 0:02:05]} 14. Bc2 {[%emt 0:07:08] The position is equal.} Qc7 {[%emt 0:05:34]} 15. Be3 {[%emt 0:03:16]} Bb7 {[%emt 0:10:51]} 16. d5 {[%emt 0:04:06]} c4 {[%emt 0:04:12]} 17. Nh2 {[%emt 0:03:57] [#]} a5 $146 {[%emt 0:04:06]} ({Predecessor:} 17... g6 18. Qd2 Nc5 19. Rf1 Bg7 20. Bh6 Bc8 21. Bxg7 Kxg7 22. f4 exf4 23. Rxf4 Nfd7 24. Ng4 Ne5 25. Nxe5 Rxe5 {1-0 Alvarez Calzadilla,J (2287)-Quintiliano Pinto,R (2469) Titled Tuesday intern op 20th Apr blitz 2021 (5)}) 18. Nf5 {[%emt 0:09:13]} a4 {[%emt 0:03:53]} 19. a3 {[%emt 0:03:19]} Kh8 {[%emt 0:05:10]} 20. g4 {[%emt 0:05:53]} Nc5 {[%emt 0:08:35]} 21. Qf3 {[%emt 0:04:58]} Ng8 {[%emt 0:04:30]} 22. g5 {[%emt 0:09:10]} g6 {[%emt 0:17:48]} 23. Ng3 {[%emt 0:02:58]} Be7 {[%emt 0:01:09]} 24. h4 {[%emt 0:10:35]} (24. Qxf7 $2 Rf8 $19) 24... Rf8 {[%emt 0:02:30]} 25. h5 {[%emt 0:08:00]} (25. Qg2 $16) 25... Bc8 {[%emt 0:04:31]} 26. Qh1 {[%emt 0:04:08]} Qd7 {[%emt 0:09:00]} 27. f4 {[%emt 0:07:45]} (27. Qg2 {simplifies} Nd3 28. Bxd3 cxd3 29. hxg6 hxg6 30. Rad1) 27... Qh3 {[%emt 0:06:39] Wards off f5} 28. Qf3 {[%emt 0:01:39]} (28. Qg2 $14) 28... exf4 $2 {[%emt 0:03:56] [#]} (28... Nb3 $11 {and Black stays safe.}) 29. Bd4+ $1 $18 {[%emt 0:03:13]} f6 {[%emt 0:01:57]} (29... Bf6 {might work better.}) 30. Qxf4 {[%emt 0:00:30] Threatens to win with Re3.} Nd7 {[%emt 0:01:11]} 31. Re3 {[%emt 0:03:57]} Ne5 {[%emt 0:01:13] [#]} 32. Nf5 $1 {[%emt 0:00:55][%mdl 576] Discovered Attack} Qxh5 {[%emt 0:00:45]} 33. Nxe7 {[%emt 0:00:34][%mdl 64] Remove Defender, Deflection} Nxe7 {[%emt 0:00:35]} 34. gxf6 {[%emt 0:00:06]} g5 $2 {[%emt 0:02:19] [#]} (34... Ng8 35. f7 Ra7 {[%mdl 64] Decoy}) 35. Bxe5 $1 {[%emt 0:01:26]} gxf4 {[%emt 0:00:16]} (35... dxe5 36. Qxe5) 36. fxe7+ {[%emt 0:00:06]} Kg8 {[%emt 0:00:07]} 37. exf8=Q+ {[%emt 0:00:09]} Kxf8 {[%emt 0:00:02]} 38. Bxd6+ {[%emt 0:00:25]} Ke8 {[%emt 0:00:07]} 39. Bxf4 {[%emt 0:00:15]} Ra7 {[%emt 0:00:06]} 40. Kh1 $2 {[%emt 0:04:10]} ({White should try} 40. Rg3 $18 Rf7 41. Rf1) 40... Rg7 {[%emt 0:01:58][%mdl 8192] This costs Black the game.} (40... Rf7 $14 41. Bg3 Qg5) 41. Rg1 {[%emt 0:04:30] White is clearly winning.} Rxg1+ {[%emt 0:03:37]} 42. Kxg1 {[%emt 0:00:09]} Bg4 {[%emt 0:00:18]} (42... Qf7 $142 43. Rf3 h5) 43. e5 {[%emt 0:07:37]} Bf5 {[%emt 0:01:36]} 44. Bxf5 {[%emt 0:01:17]} Qxf5 {[%emt 0:00:11]} 45. Bg3 {[%emt 0:01:30] d6 would be deadly.} Qb1+ {[%emt 0:00:51]} 46. Nf1 {[%emt 0:00:09] A superb game by Roebers.   Weighted Error Value: White=0.30/Black=0.56} 1-0

[Event "85th Tata Steel Challengers 2023"]
[Site "Wijk aan Zee"]
[Date "2023.01.15"]
[Round "2.7"]
[White "Pechac, Jergus"]
[Black "Tabatabaei, M. Amin"]
[Result "0-1"]
[ECO "C34"]
[WhiteElo "2637"]
[BlackElo "2686"]
[Annotator "TA"]
[PlyCount "90"]
[EventDate "2023.01.10"]
[EventType "tourn"]
[EventCountry "NED"]
[SourceTitle "playchess.com"]
[Source "ChessBase"]
[SourceQuality "1"]
[TimeControl "40/6000+30:30/3000+30:900+30"]

{[%evp 9,90,-54,-46,-50,195,192,181,179,178,177,210,68,53,55,43,47,36,4,30,20,42,37,57,61,62,79,78,75,56,0,93,68,73,79,63,64,102,-71,-72,-64,-52,-70,-49,-46,-46,-46,-46,-46,-49,-47,-48,-66,-30,-48,-43,-45,-50,-70,-70,-60,-58,-99,-101,-155,-154,-148,-156,-139,-143,-156,-172,-162,-160,-208,-218,-213,-214,-203,-202,-282,-274,-569,-562]} 1. e4 {[%emt 0:00:04]} e5 {[%emt 0:00:30]} 2. f4 {[%emt 0:00:57]} exf4 {[%emt 0:01:37]} 3. Nf3 {[%emt 0:00:07]} Nf6 {[%emt 0:04:23]} 4. e5 {[%emt 0:00:14]} Nh5 {[%emt 0:00:37]} 5. d4 {[%emt 0:00:30]} d6 {[%emt 0:01:40]} 6. Qe2 {[%emt 0:01:02] C34: King's Gambit Accepted: 3 Nf3: 3...Nf6 and 3...d6.} Be7 {[%emt 0:00:09]} (6... dxe5 $15 7. Nxe5 Qh4+ 8. Kd1 Be7) 7. exd6 $1 $18 {[%emt 0:00:10]} Qxd6 {[%emt 0:06:47]} 8. Qb5+ {[%emt 0:01:29] White is clearly better.} Nc6 {[%emt 0:00:23][%cal Og7g5]} 9. Qxh5 {[%emt 0:00:09]} Nxd4 {[%emt 0:00:10] [#]} 10. Bd3 $146 {[%emt 0:10:48]} ({White has to play} 10. Nxd4 $18 Qxd4 11. Bd3) ({Predecessor:} 10. Nxd4 Qxd4 11. Nc3 O-O 12. Bd2 g6 13. Qd5 Bh4+ 14. Kd1 Qg7 15. Kc1 Rd8 16. Qf3 {0-1 Ploder,U (1873)-Tan,J (2526) Reinstorf op 2022 (3)}) 10... g6 $14 {[%emt 0:01:18]} 11. Qa5 {[%emt 0:02:01]} Nxf3+ {[%emt 0:06:49]} 12. gxf3 {[%emt 0:00:50]} O-O $1 {[%emt 0:00:08]} 13. Nc3 {[%emt 0:02:51] And now Ne4 would win.} (13. Qa4 {seems wilder.} Bg5 14. h4 Bd7 15. Qa3) 13... Qe6+ {[%emt 0:06:36]} 14. Ne2 $1 {[%emt 0:04:18]} Bh4+ {[%emt 0:06:42]} 15. Kd1 {[%emt 0:00:25]} Qh3 {[%emt 0:01:15]} 16. Bxf4 {[%emt 0:02:06] aiming for Bh6.} Qxf3 {[%emt 0:03:14]} 17. Kd2 {[%emt 0:04:03] Hoping for Raf1.} Bh3 {[%emt 0:10:24] Prevents Raf1} 18. Bg3 {[%emt 0:05:38]} (18. Bxc7 Rfe8 19. Rae1 b6 $17) (18. Qxc7 $2 Rac8 19. Qa5 Rfe8 $19) 18... b6 {[%emt 0:19:57]} 19. Qb5 {[%emt 0:06:24]} (19. Qa4 $14 Bg5+ 20. Bf4) 19... a6 {[%emt 0:04:45]} (19... c6 $1 $11 20. Qe5 Bg2) 20. Qc4 {[%emt 0:01:38]} Bg5+ {[%emt 0:03:18]} 21. Bf4 {[%emt 0:00:49]} Bf6 {[%emt 0:01:28]} 22. Rhg1 $1 {[%emt 0:20:02][%cal Od3g6] Threatens to win with Bxg6!} (22. Qxc7 $2 {perishes.} Rfe8 23. Rhg1 Rac8 $19) 22... Rfe8 {[%emt 0:01:24][%cal Bf8e8,Be8e6,Be6d6][%mdl 32] Strongly threatening ...b5.} 23. Rae1 $2 {[%emt 0:09:50]} ({Reject} 23. Bxc7 $6 Rac8 24. Qf4 Qc6 $15) (23. Rg3 $1 $16 {[%cal Rg3f3] is forced if you want to stay better.} Qh5 24. Rag1 (24. Bxc7 Bxb2 25. Rb1 Be6 $16)) 23... b5 $1 $17 {[%emt 0:03:57]} 24. Qxc7 {[%emt 0:09:31]} Rac8 {[%emt 0:01:01]} 25. Qd6 {[%emt 0:06:07][%csl LRa6,LRf6]} Re6 {[%emt 0:00:28] Black is much more active.} (25... Bxb2 $5 {[%cal Rf3f2]} 26. Bh6 Qh5 $11) 26. Rg3 $1 {[%emt 0:00:31][%cal Bg1g3,Bg3h3,Bh3h4,Bh4b4,Bb4b1][%mdl 32]} Qf2 {[%emt 0:00:28] Really sharp!} 27. Be3 $1 {[%emt 0:01:17]} Qxe1+ {[%emt 0:03:34]} (27... Qxh2 $2 28. Rxg6+ hxg6 29. Qxh2 $18) 28. Kxe1 {[%emt 0:00:08]} Rxd6 {[%emt 0:00:04]} 29. Rxh3 {[%emt 0:00:12]} Bxb2 {[%emt 0:00:03]} 30. Rh4 {[%emt 0:01:22]} f5 {[%emt 0:03:16]} 31. a4 {[%emt 0:04:43]} Bf6 $1 $36 {[%emt 0:02:02][%mdl 2048] Black has the initiative.} 32. Rb4 {[%emt 0:00:08]} Be7 {[%emt 0:01:36][%cal Od6d3] ...Rxd3! would be deadly.} 33. Rb1 {[%emt 0:00:58]} bxa4 {[%emt 0:01:06]} 34. Ra1 {[%emt 0:04:20] [#]} a3 $1 {[%emt 0:00:26]} 35. Bc1 {[%emt 0:01:40] [#]} (35. Ra2 Re6) 35... Rd5 $1 {[%emt 0:00:42]} 36. Bxa3 {[%emt 0:00:36] [#]} (36. Ra2 $142) 36... Ra5 $1 {[%emt 0:00:39]} 37. Bb2 {[%emt 0:00:08]} Rxa1+ {[%emt 0:00:03]} 38. Bxa1 {[%emt 0:00:08]} a5 {[%emt 0:00:02]} 39. Nf4 {[%emt 0:02:28]} Kf7 {[%emt 0:03:34]} 40. Nd5 {[%emt 0:00:34]} Bd6 {[%emt 0:00:24]} 41. h3 {[%emt 0:50:25]} (41. Nb6 $17 Rb8 42. Bc4+ Ke8 43. Bd4) 41... Re8+ $19 {[%emt 0:25:34]} 42. Kd2 {[%emt 0:00:00]} Be5 {[%emt 0:00:13] Against Nf6} 43. Bxe5 {[%emt 0:00:00]} Rxe5 {[%emt 0:00:13]} 44. c4 {[%emt 0:00:00]} Ke6 {[%emt 0:08:16]} 45. Kc3 $2 {[%emt 0:00:00]} (45. Nc3 {was worth a try.}) 45... Rxd5 {[%emt 0:09:35] Excellently played by Tabatabaei!   Weighted Error Value: White=0.28 (precise) /Black=0.15 (very precise)} 0-1